bitfinex-derivatives/quotes_ETHF0:USTF0_20250929
["timestamp","ask_amount","ask_price","bid_price","bid_amount"]
[1759184209508,0.7378,4222.9,4222.8,0.63528]
[1759184211315,0.42597,4222.9,4222.6,1.27614461]
[1759184211512,0.7378,4222.7,4222.6,1.70214461]
[1759184211714,0.42601,4222.6,4222.3,1.27614461]
[1759184212019,0.8621,4222.5,4222.4,0.42602]
[1759184212314,0.8621,4222.5,4222.3,1.27614461]
[1759184212515,0.3179,4222.3,4222.1,0.42605]
[1759184212817,0.1243,4222.5,4222.1,0.42605]
[1759184212818,0.7378,4222.2,4222.1,0.42605]
[1759184213017,1.16384,4222.2,4222.1,0.42605]
[1759184213615,0.7378,4222.2,4222.1,0.42605]
[1759184214126,0.7378,4222.2,4222.1,1.17915]
[1759184217124,0.3179,4222.2,4222.1,1.17915]
[1759184217510,0.5426,4222.2,4222.1,1.17915]
[1759184218709,0.329,4222.4,4222.3,1.18783]
[1759184219514,0.5537,4222.4,4222.3,1.18783]
[1759184219917,0.757,4222.4,4222.3,1.18783]
[1759184220516,0.5537,4222.4,4222.3,1.18783]
[1759184222022,0.757,4222.4,4222.3,0.85733]
[1759184223324,0.757,4222.4,4222.3,1.18783]
[1759184224320,1.18303,4222.3,4222.2,0.42603]
[1759184224617,0.757,4222.3,4222.2,0.42603]
[1759184225618,1.18303,4222.3,4222.2,0.42603]
[1759184226525,1.18303,4222.3,4222.2,0.42604]
[1759184228521,0.757,4222.1,4222.0,0.42606]
[1759184228721,0.42606,4222.0,4221.9,0.42873708]
[1759184228925,0.42606,4222.0,4221.9,0.00266708]
[1759184228926,1.31526,4222.0,4221.9,0.00266708]
[1759184229627,1.31526,4222.0,4221.9,0.42873708]
[1759184229822,1.31526,4222.0,4221.9,0.00266708]
[1759184231129,1.31526,4222.0,4221.9,0.42873708]
[1759184232228,0.8892,4222.0,4221.9,0.42873708]
[1759184232429,1.31526,4222.0,4221.9,0.42873708]
[1759184234827,1.31526,4222.0,4221.9,0.00266708]
[1759184235228,1.31526,4222.0,4221.9,0.42873708]
[1759184236831,1.1282,4222.0,4221.9,0.42873708]
[1759184237130,1.1282,4222.0,4221.9,0.63703708]
[1759184237431,1.55426,4222.0,4221.9,0.63703708]
[1759184239324,1.31526,4222.0,4221.9,0.63703708]
[1759184239629,1.55426,4222.0,4221.9,0.63703708]
[1759184239821,1.1282,4222.0,4221.9,0.63703708]
[1759184240023,0.8892,4222.0,4221.9,0.63703708]
[1759184240229,1.1282,4222.0,4221.9,0.63703708]
[1759184242133,1.1282,4222.0,4221.9,0.42873708]
[1759184242535,1.55426,4222.0,4221.9,0.00266708]
[1759184242836,1.55426,4222.0,4221.9,0.42873708]
[1759184244536,1.1282,4222.0,4221.9,0.42873708]
[1759184244740,0.8892,4222.0,4221.9,0.65333708]
[1759184244933,0.8892,4222.0,4221.9,1.17843708]
[1759184245133,1.1282,4222.0,4221.9,1.17843708]
[1759184249041,1.1282,4222.0,4221.9,0.87183708]
[1759184249636,1.55426,4222.0,4221.9,0.00266708]
[1759184249939,1.1282,4222.0,4221.9,0.42873708]
[1759184253742,1.55426,4222.0,4221.9,0.42873708]
[1759184254139,2.04891736,4222.0,4221.9,0.42873708]
[1759184256844,1.62285736,4222.0,4221.9,0.42873708]
[1759184257238,2.04891736,4222.0,4221.9,0.42873708]
[1759184257744,1.38385736,4222.0,4221.9,0.42873708]
[1759184257940,1.62285736,4222.0,4221.9,0.42873708]
[1759184258440,1.38385736,4222.0,4221.9,0.42873708]
[1759184258648,1.62285736,4222.0,4221.9,2.45458169]
[1759184259741,1.38385736,4222.0,4221.9,2.45458169]
[1759184259946,1.62285736,4222.0,4221.9,2.45458169]
[1759184261242,1.25165736,4222.0,4221.9,2.45458169]
[1759184261449,0.4284,4222.4,4222.3,1.17573]
[1759184261649,1.1621384,4222.4,4222.3,1.17573]
[1759184261950,1.4698384,4222.4,4222.3,0.86913]
[1759184262944,1.2308384,4222.4,4222.3,1.17573]
[1759184263149,1.4698384,4222.4,4222.3,1.17573]
[1759184266654,1.4698384,4222.4,4222.3,0.86913]
[1759184267752,1.4698384,4222.4,4222.3,1.17573]
[1759184268253,1.2308384,4222.4,4222.3,1.17573]
[1759184268457,1.4698384,4222.4,4222.3,1.17573]
[1759184271453,1.2308384,4222.4,4222.3,1.17573]
[1759184271656,0.5195,4222.4,4222.3,1.17573]
[1759184271851,0.7361,4222.4,4222.3,1.17573]
[1759184272160,1.23056775,4222.4,4222.3,1.17573]
[1759184272861,1.23056775,4222.4,4222.3,0.86913]
[1759184276359,1.23056775,4222.4,4222.3,1.20623]
[1759184276750,1.23056775,4222.4,4222.3,0.86913]
[1759184278252,0.7361,4222.4,4222.3,0.86913]
[1759184280161,1.16212,4222.4,4222.3,0.86913]
[1759184281064,1.17844,4222.2,4222.1,1.7044094]
[1759184281559,0.3215,4222.0,4221.9,1.28102648]
[1759184281755,1.79577406,4222.0,4221.9,0.00266708]
[1759184282755,1.79577406,4222.0,4221.9,0.42873708]
[1759184282962,1.79577406,4222.0,4221.9,0.63803708]
[1759184283362,1.79577406,4222.0,4221.9,0.21196708]
[1759184283571,1.79577406,4222.0,4221.9,0.00266708]
[1759184283764,2.03477406,4222.0,4221.9,0.00266708]
[1759184286267,1.36971406,4222.0,4221.9,0.85083708]
[1759184286466,2.03477406,4222.0,4221.9,1.18793708]
[1759184286666,1.79577406,4222.0,4221.9,1.18793708]
[1759184286868,1.79577406,4222.0,4221.9,0.76186708]
[1759184287166,2.03477406,4222.0,4221.9,1.18793708]
[1759184287770,2.03477406,4222.0,4221.9,0.85083708]
[1759184290076,1.60871406,4222.0,4221.9,0.85083708]
[1759184290265,1.60871406,4222.0,4221.9,1.18793708]
[1759184290464,2.03477406,4222.0,4221.9,1.18793708]
[1759184291271,1.30136,4222.0,4221.9,1.18793708]
[1759184291469,0.3215,4222.0,4221.9,1.18793708]
[1759184291865,0.8873,4222.5,4222.4,1.18522]
[1759184292162,2.05265459,4222.5,4222.4,1.18522]
[1759184292970,2.05265459,4222.5,4222.4,0.84812]
[1759184294470,1.81365459,4222.5,4222.4,0.84812]
[1759184295675,1.81365459,4222.5,4222.4,0.63532]
[1759184298178,1.38764459,4222.5,4222.4,0.63532]
[1759184298571,1.81365459,4222.5,4222.4,0.63532]
[1759184301684,1.30196,4222.0,4221.9,0.00266708]
[1759184301978,1.54096,4222.0,4221.9,0.42873708]
[1759184302779,0.8759,4222.0,4221.9,0.64613708]
[1759184303086,1.1149,4222.0,4221.9,1.16833708]
[1759184304085,0.8759,4222.0,4221.9,1.16833708]
[1759184308888,0.884,4222.0,4221.9,0.86303708]
[1759184309689,0.884,4222.0,4221.9,0.42873708]
[1759184310196,1.31006,4222.0,4221.9,0.42873708]
[1759184311295,0.884,4222.0,4221.9,0.42873708]
[1759184317197,1.31006,4222.0,4221.9,0.42873708]
[1759184317597,0.884,4222.0,4221.9,0.42873708]
[1759184317793,0.884,4222.0,4221.9,1.19733708]
[1759184319794,0.5426,4222.0,4221.9,1.19733708]
[1759184323803,0.6757,4222.0,4221.9,1.19733708]
[1759184324496,0.884,4222.0,4221.9,1.19733708]
[1759184324696,0.884,4222.0,4221.9,0.86093708]
[1759184328604,0.884,4222.0,4221.9,0.42873708]
[1759184329805,0.884,4222.0,4221.9,1.19733708]
[1759184335508,0.5426,4222.0,4221.9,1.19733708]
[1759184341913,0.3261,4222.0,4221.9,1.19733708]
[1759184343714,0.8928,4222.0,4221.9,0.42873708]
[1759184345217,0.8928,4222.0,4221.9,0.63813708]
[1759184345416,0.8928,4222.0,4221.9,1.18223708]
[1759184346511,0.5446,4222.0,4221.9,1.18223708]
[1759184346813,0.6795,4222.0,4221.9,1.18223708]
[1759184349712,0.56092,4222.5,4221.9,1.18223708]
[1759184349912,0.56092,4222.5,4222.4,1.17952]
[1759184349913,0.3196,4222.5,4222.4,1.17952]
[1759184350218,0.7514,4223.4,4223.3,1.17943]
[1759184350412,1.25220476,4223.4,4223.3,0.419]
[1759184350713,1.25220476,4223.4,4223.3,0.84493]
[1759184350910,0.7514,4223.4,4223.3,0.84493]
[1759184351513,0.7514,4223.4,4223.3,1.17943]
[1759184351709,0.88805159,4224.0,4223.9,0.63527]
[1759184351912,0.88805159,4224.0,4223.9,0.84487]
[1759184352720,0.88805159,4224.0,4223.9,1.17937]
[1759184353518,0.88805159,4224.0,4223.9,0.84487]
[1759184354021,0.88805159,4224.0,4223.9,0.63527]
[1759184354209,0.88805159,4224.0,4223.9,0.42587]
[1759184358016,0.88805159,4224.0,4223.1,0.63895]
[1759184358017,0.7387,4223.2,4223.1,0.63895]
[1759184358218,0.7387,4223.2,4223.1,0.85855]
[1759184358421,0.7387,4223.2,4223.1,1.17455]
[1759184360715,0.7387,4223.2,4223.1,0.85855]
[1759184362927,0.7387,4223.2,4223.1,1.17455]
[1759184370729,0.7387,4223.2,4223.1,0.85855]
[1759184371621,0.4297,4223.2,4222.8,1.27016085]
[1759184371827,0.1229,4223.5,4222.8,1.27016085]
[1759184371828,0.7626,4222.9,4222.8,0.42598]
[1759184372428,0.7626,4222.9,4222.8,0.64918]
[1759184372727,0.7626,4222.9,4222.8,0.42598]
[1759184372925,0.7626,4222.9,4222.8,1.17788]
[1759184373325,0.7626,4222.9,4222.8,0.85888]
[1759184375726,0.8954,4222.5,4222.4,0.64922]
[1759184375922,0.8954,4222.5,4222.4,0.42602]
[1759184376127,0.7626,4222.2,4222.1,0.42605]
[1759184377534,1.18864,4222.2,4222.1,0.42605]
[1759184378033,0.7626,4222.2,4222.1,0.42605]
[1759184378923,0.1328,4222.0,4221.9,0.65193708]
[1759184379230,0.8954,4222.0,4221.9,0.65193708]
[1759184380422,1.32146,4222.0,4221.9,0.00266708]
[1759184380629,6.32146,4222.0,4221.9,0.00266708]
[1759184381926,0.8954,4222.0,4221.9,0.00266708]
[1759184382328,0.8954,4222.0,4221.9,0.42873708]
[1759184382529,0.8954,4222.0,4221.9,0.00266708]
[1759184384227,0.8954,4222.0,4221.9,0.42873708]
[1759184388540,41.6954,4222.0,4221.9,0.42873708]
[1759184388734,41.9334,4222.0,4221.9,0.42873708]
[1759184389540,41.6954,4222.0,4221.9,0.42873708]
[1759184389733,41.9334,4222.0,4221.9,0.42873708]
[1759184392136,42.35946,4222.0,4221.9,0.42873708]
[1759184393335,42.35946,4222.0,4221.9,0.00266708]
[1759184393540,47.35946,4222.0,4221.9,0.00266708]
[1759184399245,47.85262805,4222.0,4221.9,0.00266708]
[1759184400739,0.76242,4221.5,4221.4,0.42612]
[1759184400947,0.764,4220.9,4220.8,0.4318]
[1759184401242,1.002,4220.9,4220.8,1.17088]
[1759184401740,1.00489604,4220.9,4220.8,1.17088]
[1759184401937,1.00489604,4220.9,4220.8,1.17387822]
[1759184408551,0.3363,4221.8,4221.7,0.85789]
[1759184408852,0.5743,4221.8,4221.7,1.17079]
[1759184409554,0.57598975,4221.8,4221.7,1.17079]
[1759184410153,1.0711973,4221.8,4221.7,1.17079]
[1759184410354,0.57598975,4221.8,4221.7,1.17079]
[1759184411155,0.00168975,4221.8,4221.7,1.17079]
[1759184414348,0.00168975,4221.8,4221.7,6.17079]
[1759184416357,0.31938975,4221.8,4221.7,6.17079]
[1759184416848,0.7636,4221.4,4221.3,0.94673]
[1759184417053,0.7636,4221.4,4221.3,0.63343]
[1759184418260,0.371,4221.5,4221.0,0.3133]
[1759184418261,0.76528975,4221.8,4221.7,0.84599]
[1759184418455,1.49817503,4221.8,4221.7,0.84599]
[1759184418753,1.92425503,4221.8,4221.7,0.42609]
[1759184419252,0.7636,4221.2,4221.1,0.94675]
[1759184419560,0.7636,4221.2,4221.1,1.15935]
[1759184421060,0.541,4221.2,4221.1,1.15935]
[1759184421256,0.00168975,4221.8,4221.4,0.42612]
[1759184421460,0.44758975,4221.8,4221.7,1.15929]
[1759184421661,1.1214739,4221.8,4221.7,0.84599]
[1759184421862,1.4391739,4221.8,4221.7,0.84599]
[1759184422068,0.94428975,4221.8,4221.7,0.84599]
[1759184422361,1.8652518,4221.8,4221.7,0.84599]
[1759184422660,1.8652518,4221.8,4221.7,0.2073]
[1759184423459,1.8652518,4221.8,4221.7,0.63339]
[1759184423661,1.8652518,4221.8,4221.7,0.42609]
[1759184424760,0.7593,4221.6,4221.5,0.42611]
[1759184425659,0.7593,4221.6,4221.5,0.63421]
[1759184425862,0.7593,4221.6,4221.5,0.84381]
[1759184426050,0.7593,4221.6,4221.5,1.16241]
[1759184426857,1.1854,4221.6,4221.5,0.4177]
[1759184427062,1.1854,4221.6,4221.5,0.2081]
[1759184427262,1.1854,4221.6,4221.5,0.63421]
[1759184427558,1.1854,4221.6,4221.5,0.2081]
[1759184428457,0.77511,4221.5,4221.4,0.42612]
[1759184428766,1.30941,4221.5,4221.4,0.63422]
[1759184429763,1.30941,4221.5,4221.0,0.84386]
[1759184429764,0.7593,4221.1,4221.0,0.84386]
[1759184430365,0.7593,4221.1,4221.0,1.16246]
[1759184432968,0.5502,4221.1,4221.0,1.16246]
[1759184433561,0.6742,4221.5,4221.4,0.84382]
[1759184433766,0.5502,4221.5,4221.4,1.16242]
[1759184437166,0.42777975,4221.8,4221.7,0.63419]
[1759184437167,0.32688975,4221.8,4221.7,0.63419]
[1759184437362,0.32688975,4221.8,4221.7,1.16239]
[1759184437864,0.00168975,4221.8,4221.7,1.16239]
[1759184438168,0.225,4222.5,4222.4,1.16232]
[1759184438556,0.3252,4222.5,4222.4,1.16232]
[1759184438769,0.5633,4223.0,4222.9,1.16227]
[1759184438964,1.29783558,4223.0,4222.9,1.16227]
[1759184439159,1.62303558,4223.0,4222.9,1.16227]
[1759184439357,1.62303558,4223.0,4222.9,0.84367]
[1759184439766,1.62303558,4223.0,4222.9,1.16227]
[1759184439968,1.38503558,4223.0,4222.9,1.16227]
[1759184440370,1.62303558,4223.0,4222.9,1.16227]
[1759184441072,1.62303558,4223.0,4222.9,0.84367]
[1759184441472,1.1283284,4223.0,4222.9,0.84367]
[1759184444573,0.8903284,4223.0,4222.9,0.84367]
[1759184444772,0.3270284,4223.0,4222.9,1.16227]
[1759184448777,0.6760284,4223.0,4222.9,1.16227]
[1759184449983,0.5520284,4223.0,4222.9,1.16227]
[1759184451785,0.3270284,4223.0,4222.9,1.16227]
[1759184454084,0.5520284,4223.0,4222.9,1.16227]
[1759184454284,0.5520284,4223.0,4222.9,0.7363]
[1759184459598,0.9048284,4223.0,4222.9,0.7363]
[1759184460089,0.8887,4222.5,4222.4,0.2214]
[1759184460293,0.8887,4222.5,4222.4,0.4304]
[1759184460486,0.3244,4222.5,4222.4,0.7641]
[1759184460885,0.0018284,4223.0,4222.4,0.7641]
[1759184461092,0.0018284,4223.0,4222.9,0.7641]
[1759184461490,0.5377284,4223.0,4222.9,0.7641]
[1759184462089,0.3262284,4223.0,4222.9,0.7641]
[1759184463092,0.0018284,4223.0,4222.9,0.7641]
[1759184465989,0.3262284,4223.0,4222.9,0.7641]
[1759184467090,0.0018284,4223.0,4222.9,0.7641]
[1759184467486,0.3262284,4223.0,4222.9,0.7641]
[1759184467888,0.0018284,4223.0,4222.9,5.7641]
[1759184468085,0.3244,4224.4,4223.7,0.4304]
[1759184468293,0.7537,4224.2,4224.1,0.4304]
[1759184468494,1.24818964,4224.2,4224.1,0.4304]
[1759184469088,1.25059861,4224.2,4224.1,0.43302899]
[1759184469894,0.75610897,4224.2,4224.1,0.76672899]
[1759184470693,0.75610897,4224.2,4224.1,0.43302899]
[1759184471897,0.75610897,4224.2,4224.1,0.00262899]
[1759184473201,0.75610897,4224.2,4224.1,0.22402899]
[1759184474503,0.99410897,4224.2,4224.1,0.22402899]
[1759184476389,0.75610897,4224.2,4224.1,0.00262899]
[1759184476594,0.99410897,4224.2,4224.1,0.00262899]
[1759184480800,5.99410897,4224.2,4222.9,1.69832308]
[1759184481097,0.8654,4223.0,4222.9,0.2133]
[1759184481796,0.8654,4223.0,4222.9,0.21556622]
[1759184482695,0.8654,4223.0,4222.9,0.00226622]
[1759184488705,1.1034,4223.0,4222.9,0.00226622]
[1759184492398,0.8654,4223.0,4222.9,0.00226622]
[1759184492607,1.1034,4223.0,4222.9,0.00226622]
[1759184494607,8.7947,4223.0,4221.7,0.50963715]
[1759184494804,0.7583,4221.4,4221.3,0.4087]
[1759184495308,0.3295,4221.3,4221.0,1.69832308]
[1759184495606,0.8898,4221.0,4220.9,0.39342106]
[1759184495812,0.89254145,4221.0,4220.9,0.20703985]
[1759184498210,0.89254145,4221.0,4220.9,0.00233985]
[1759184501419,5.89254145,4221.0,4219.7,0.3156]
[1759184501616,0.1315,4220.0,4219.9,0.2047]
[1759184501816,0.8898,4220.0,4219.9,0.2047]
[1759184502522,0.8898,4220.0,4219.9,0.20672076]
[1759184503716,0.8898,4220.0,4219.9,0.41072076]
[1759184504517,0.8898,4220.0,4219.9,0.20672076]
[1759184506825,0.8898,4220.0,4219.9,0.41072076]
[1759184510026,0.2163,4220.1,4220.0,0.7243]
[1759184510219,0.5458,4220.1,4220.0,0.7243]
[1759184512326,0.3295,4220.4,4220.0,5.4753]
[1759184512524,0.3478,4220.5,4220.4,0.4087]
[1759184512827,0.3478,4220.5,4220.4,0.7243]
[1759184513027,0.6773,4220.5,4220.4,0.7243]
[1759184515025,0.238,4220.9,4220.5,0.309]
[1759184515226,0.7616,4220.8,4220.7,0.4457]
[1759184515830,0.7616,4220.8,4220.7,0.7547]
[1759184519428,0.7616,4220.8,4220.7,0.4457]
[1759184521134,0.7616,4220.8,4220.0,0.309]
[1759184521528,0.2062,4220.1,4220.0,0.7547]
[1759184521723,0.7616,4220.1,4220.0,0.7547]
[1759184523437,0.5397,4220.1,4220.0,0.7547]
[1759184524231,0.5397,4220.1,4220.0,2.45302308]
[1759184525138,0.5397,4220.1,4220.0,0.7547]
[1759184525439,0.5397,4220.1,4220.0,2.45302308]
[1759184525643,0.7616,4220.1,4220.0,2.45302308]
[1759184526941,0.8942,4220.0,4219.9,0.00202076]
[1759184531040,41.6942,4220.0,4219.9,0.00202076]
[1759184533840,46.3607,4220.0,4218.9,1.69832308]
[1759184534041,0.5607,4219.0,4218.5,1.69832308]
[1759184534340,0.7616,4218.4,4218.3,0.4457]
[1759184534543,0.7616,4218.4,4218.3,0.7547]
[1759184534946,0.7616,4218.4,4218.3,0.75705905]
[1759184540249,0.5397,4218.4,4218.3,0.75705905]
[1759184540450,0.3335,4218.4,4218.3,0.75705905]
[1759184549652,0.5402,4218.4,4218.3,0.75705905]
[1759184549851,0.7545,4218.4,4218.3,0.44805905]
[1759184550153,0.7545,4218.4,4218.3,0.77705905]
[1759184551858,0.3266,4218.9,4218.3,0.44805905]
[1759184552155,0.5477,4218.9,4218.8,0.7481]
[1759184553765,0.3266,4218.9,4218.8,0.7481]
[1759184556853,0.1326,4219.5,4218.8,0.7481]
[1759184557050,0.3266,4219.4,4219.3,0.2095]
[1759184557254,0.762,4219.4,4219.3,0.7481]
[1759184558461,0.5477,4219.4,4219.3,0.7481]
[1759184558659,0.3266,4219.4,4219.3,0.7481]
[1759184558861,0.5477,4219.4,4219.3,0.7481]
[1759184560152,0.2211,4219.9,4219.8,0.2095]
[1759184560354,0.762,4219.9,4219.8,0.5385]
[1759184560649,0.762,4219.9,4219.8,0.2095]
[1759184561052,0.762,4219.9,4219.8,0.7481]
[1759184561353,0.762,4219.9,4219.8,0.4191]
[1759184562660,0.762,4219.9,4219.8,0.7481]
[1759184564556,0.3266,4219.9,4219.8,0.7481]
[1759184565159,0.5477,4219.9,4219.8,0.7481]
[1759184572267,0.762,4219.9,4219.8,0.7481]
[1759184575368,0.762,4219.9,4219.8,0.4191]
[1759184576063,0.762,4219.9,4219.8,0.7513]
[1759184578662,0.758,4219.6,4219.5,0.238]
[1759184578869,0.3377,4219.3,4219.2,1.69832308]
[1759184579068,0.758,4219.3,4219.2,2.47002308]
[1759184579272,0.758,4219.3,4219.2,0.7717]
[1759184580667,0.758,4219.3,4219.2,0.4395]
[1759184580868,0.758,4219.3,4219.2,1.69972185]
[1759184581768,0.3377,4219.2,4219.0,1.69972185]
[1759184582070,0.758,4219.1,4219.0,1.69972185]
[1759184583172,0.3377,4218.9,4218.7,1.69972185]
[1759184583470,0.758,4218.9,4218.8,0.7717]
[1759184583670,0.758,4218.9,4218.8,0.4395]
[1759184584268,0.758,4218.9,4218.8,2.13922185]
[1759184584577,0.4203,4218.9,4218.7,1.69972185]
[1759184584777,0.758,4218.8,4218.7,1.91432185]
[1759184586578,0.758,4218.8,4218.7,0.2146]
[1759184587271,0.4203,4218.8,4218.6,1.69972185]
[1759184587479,0.758,4218.7,4218.6,1.69972185]
[1759184588478,0.758,4218.6,4218.3,1.9400809]
[1759184588676,0.8812,4218.5,4218.4,0.2146]
[1759184588877,0.3377,4218.4,4218.3,1.9400809]
[1759184589081,0.758,4218.4,4218.3,1.9400809]
[1759184590382,0.758,4218.4,4218.3,0.24035905]
[1759184590881,0.758,4218.4,4218.3,0.45495905]
[1759184591073,0.758,4218.4,4218.3,0.77405905]
[1759184591680,0.5459,4218.4,4218.3,0.77405905]
[1759184591978,0.5459,4218.4,4218.3,2.4737809]
[1759184592178,0.5459,4218.4,4218.3,0.77405905]
[1759184594175,0.5459,4218.9,4218.8,0.7717]
[1759184594378,0.758,4218.9,4218.8,0.2146]
[1759184595179,0.8812,4218.5,4218.4,0.2146]
[1759184597980,0.8812,4218.5,4218.4,0.7717]
[1759184600386,0.8812,4218.5,4218.4,0.4395]
[1759184601790,0.8812,4218.5,4218.3,0.00235905]
[1759184601987,0.8812,4218.5,4218.4,0.2163]
[1759184603088,0.8812,4218.5,4218.3,0.00235905]
[1759184608194,0.3293,4218.4,4218.3,1.7020809]
[1759184608496,0.7564,4218.4,4218.3,1.9127809]
[1759184609106,0.7564,4218.4,4218.3,1.7020809]
[1759184611794,0.7564,4218.4,4218.3,1.70590285]
[1759184612300,0.7564,4218.4,4218.3,0.00235905]
[1759184614000,0.7564,4218.4,4218.3,0.21305905]
[1759184617407,0.7564,4218.4,4218.3,0.00235905]
[1759184618706,0.7564,4218.4,4218.3,0.21305905]
[1759184619409,0.7564,4218.4,4218.3,0.00235905]
[1759184619910,0.7564,4218.4,4218.3,0.76255905]
[1759184621112,0.5503,4219.0,4218.9,0.2107]
[1759184621409,0.8796,4219.0,4218.9,0.2107]
[1759184622111,0.8796,4219.0,4218.9,0.7602]
[1759184622706,0.8796,4219.0,4218.9,0.4235]
[1759184626214,0.8796,4219.0,4218.9,2.46521903]
[1759184626215,0.5498,4219.0,4218.9,2.46521903]
[1759184626419,0.5498,4219.0,4218.9,0.7602]
[1759184626616,0.1232,4219.5,4218.9,5.4235]
[1759184626817,0.673,4219.5,4219.4,0.7602]
[1759184627027,0.8796,4219.5,4219.4,0.7602]
[1759184627713,0.8796,4219.5,4219.4,0.4235]
[1759184629222,0.8796,4219.5,4219.4,0.7602]
[1759184629815,0.8796,4219.5,4219.4,0.4235]
[1759184637028,0.8796,4219.5,4219.4,0.2107]
[1759184642927,0.8796,4219.5,4219.4,0.4212]
[1759184643132,0.8796,4219.5,4219.4,0.7263]
[1759184645135,0.8796,4219.5,4219.4,0.4212]
[1759184645329,0.8796,4219.5,4219.3,1.70454091]
[1759184645537,0.746,4219.3,4219.2,1.70454091]
[1759184646331,0.4308,4219.3,4219.1,1.70454091]
[1759184646527,0.8745,4219.0,4218.8,1.70454091]
[1759184646735,0.746,4218.7,4218.5,1.70454091]
[1759184647030,0.3152,4218.6,4218.5,1.70454091]
[1759184647237,0.746,4218.6,4218.5,1.70454091]
[1759184647431,0.5593,4218.5,4218.4,1.70454091]
[1759184647638,0.8745,4218.5,4218.4,1.70454091]
[1759184653351,0.8745,4218.5,4218.4,1.92804091]
[1759184656349,0.8745,4218.5,4218.4,2.44904091]
[1759184657750,0.3311,4218.9,4218.4,2.13854091]
[1759184658051,0.9023,4219.0,4218.9,0.7315]
[1759184659551,0.9023,4219.0,4218.9,0.421]
[1759184660647,0.9023,4219.0,4218.9,0.7315]
[1759184661148,0.9023,4219.0,4218.9,0.421]
[1759184661848,0.9023,4219.0,4218.9,0.7315]
[1759184662142,0.3311,4219.0,4218.9,0.7315]
[1759184662748,0.5659,4219.5,4219.4,0.2041]
[1759184662947,0.897,4219.5,4219.4,0.421]
[1759184663152,0.897,4219.5,4219.4,0.7315]
[1759184665556,0.897,4219.5,4219.4,0.421]
[1759184667654,0.897,4219.5,4219.4,0.2041]
[1759184671160,0.897,4219.5,4218.9,1.70454091]
[1759184671357,0.5624,4219.0,4218.7,1.70454091]
[1759184671557,0.2078,4218.8,4218.7,1.70454091]
[1759184671761,0.7356,4218.8,4218.7,1.70454091]
[1759184672352,0.7356,4218.8,4218.7,2.45744091]
[1759184672760,0.7356,4218.8,4218.7,2.13274091]
[1759184673861,0.7356,4218.8,4218.7,0.4282]
[1759184674161,0.7356,4218.8,4218.7,0.7529]
[1759184675164,0.5133,4218.8,4218.7,0.7529]
[1759184676765,0.7356,4218.8,4218.7,0.4282]
[1759184677356,0.7356,4218.8,4218.7,0.7529]
[1759184680861,0.5133,4218.8,4218.7,0.7529]
[1759184682959,0.7356,4218.8,4218.7,0.7529]
[1759184683161,0.7356,4218.8,4218.4,2.34677128]
[1759184683471,0.8679,4218.5,4218.4,0.6662]
[1759184683769,0.7356,4218.4,4218.3,0.24035905]
[1759184684067,0.7356,4218.4,4218.3,0.22335905]
[1759184686671,0.7356,4218.4,4218.3,0.43055905]
[1759184688969,0.5133,4218.4,4218.3,0.75525905]
[1759184689264,0.5133,4218.4,4218.3,2.86403033]
[1759184689860,0.3055,4218.9,4218.3,2.53933033]
[1759184690059,0.3055,4218.9,4218.8,2.45690894]
[1759184690060,0.5133,4218.9,4218.8,2.45690894]
[1759184691268,0.5133,4218.9,4218.8,0.7529]
[1759184691974,0.7356,4218.9,4218.8,0.7529]
[1759184693971,0.7356,4218.9,4218.8,0.4282]
[1759184699274,0.7356,4218.9,4218.8,0.85458]
[1759184700173,0.7356,4218.9,4218.8,0.64738]
[1759184702676,0.7356,4218.9,4218.8,0.42638]
[1759184702878,0.7356,4218.9,4218.8,2.13130372]
[1759184703979,0.7356,4218.9,4218.8,2.34260372]
[1759184704174,0.7356,4218.9,4218.8,0.63768]
[1759184704774,0.7356,4218.9,4218.8,0.84568]
[1759184704973,0.7356,4218.9,4218.8,1.18348]
[1759184706081,0.7356,4218.9,4218.8,0.42638]
[1759184706881,0.7356,4218.9,4218.8,0.63768]
[1759184708074,0.7356,4218.9,4218.8,0.42638]
[1759184708581,0.7356,4218.9,4218.8,2.13151416]
[1759184709276,0.7356,4218.9,4218.8,2.34281416]
[1759184709474,0.7356,4218.9,4218.8,0.42638]
[1759184710482,0.7356,4218.9,4218.8,0.63768]
[1759184710984,0.7356,4218.9,4218.8,1.18348]
[1759184713272,0.7356,4218.9,4218.8,0.84568]
[1759184714985,0.7356,4218.9,4218.8,1.17298]
[1759184715181,0.5133,4218.9,4218.8,1.17298]
[1759184717484,0.7214,4218.9,4218.8,1.17298]
[1759184720185,0.5133,4218.9,4218.8,1.17298]
[1759184723584,0.7214,4218.9,4218.8,1.17298]
[1759184734594,0.7448,4218.6,4218.5,2.53519128]
[1759184734790,0.7448,4218.6,4218.5,0.42642]
[1759184735895,0.7448,4218.6,4218.5,0.64902]
[1759184738401,0.7448,4218.6,4218.5,0.42642]
[1759184740100,0.5366,4218.6,4218.5,0.86752]
[1759184740397,0.5366,4218.6,4218.5,1.19452]
[1759184740801,0.6689,4219.0,4218.9,1.19448]
[1759184741001,0.8771,4219.0,4218.9,2.57200201]
[1759184741901,0.8771,4219.0,4218.9,2.35350201]
[1759184742099,0.8771,4219.0,4218.9,1.19448]
[1759184742402,0.8771,4219.0,4218.9,2.89900201]
[1759184744303,0.5366,4219.0,4218.9,2.89900201]
[1759184744805,0.8695,4219.0,4218.9,2.89900201]
[1759184745506,0.8695,4219.0,4218.9,2.57200201]
[1759184746402,0.8695,4219.0,4218.9,2.81000201]
[1759184747000,0.8695,4219.0,4218.9,3.13700201]
[1759184749510,0.8695,4219.0,4218.9,2.81000201]
[1759184749708,0.8695,4219.0,4218.9,2.36890201]
[1759184749904,0.8695,4219.0,4218.9,0.66438]
[1759184751104,0.8695,4219.0,4218.9,2.59150201]
[1759184753515,0.8695,4219.0,4218.9,0.42638]
[1759184755108,0.8695,4219.0,4218.7,1.70452201]